bitfinex/quotes_SOLUSD_20240712
["timestamp","ask_amount","ask_price","bid_price","bid_amount"]
[1720791796328,65.0,137.94,137.88,10.73965958]
[1720791796509,20.0,137.94,137.88,10.73965958]
[1720791796709,17.55003752,137.99,137.92,7.2501]
[1720791797024,20.0,137.98,137.9,18.1281]
[1720791797429,20.0,137.98,137.9,25.3792]
[1720791797614,20.0,137.98,137.9,18.1281]
[1720791798133,33.69,137.99,137.93,7.25]
[1720791798429,46.56165502,137.99,137.87,0.8581669]
[1720791798618,46.56165502,137.99,137.89,18.1298]
[1720791798809,46.56165502,137.99,137.9,53.70140269]
[1720791799123,46.56165502,137.99,137.9,1.45000269]
[1720791799421,45.0,137.98,137.89,19.20073703]
[1720791799624,45.0,137.98,137.9,1.07085936]
[1720791800536,45.0,137.98,137.91,7.251]
[1720791800832,45.0,137.98,137.9,7.2512]
[1720791801024,10.0,137.97,137.9,7.2512]
[1720791801205,10.0,137.97,137.89,25.3818]
[1720791801403,10.0,137.97,137.89,18.1298]
[1720791801736,33.69,137.96,137.9,7.2515]
[1720791802541,33.69,137.99,137.93,18.1244]
[1720791802708,10.0,137.97,137.9,7.2514]
[1720791802913,33.69,137.96,137.87,0.8581669]
[1720791803212,43.69,137.99,137.9,7.2514]
[1720791803425,43.69,137.99,137.89,18.13]
[1720791803928,65.0,137.98,137.89,18.13]
[1720791804128,65.0,137.98,137.9,7.2512]
[1720791804431,65.0,137.98,137.91,7.2509]
[1720791804732,65.0,137.98,137.9,8.7016551]
[1720791804906,10.0,137.97,137.89,25.382]
[1720791805102,65.0,137.98,137.9,7.2514]
[1720791805320,65.0,137.98,137.9,8.70123962]
[1720791805525,20.0,137.98,137.91,7.251]
[1720791806117,10.0,137.97,137.9,7.2515]
[1720791806420,20.0,137.98,137.9,7.2515]
[1720791806925,20.0,137.98,137.91,7.2509]
[1720791807229,20.0,137.98,137.93,7.2496]
[1720791807413,10.0,137.98,137.91,25.378]
[1720791807834,33.69,137.99,137.91,25.378]
[1720791808027,33.69,137.99,137.92,7.2505]
[1720791808212,10.0,137.98,137.91,25.3782]
[1720791808410,33.69,137.99,137.91,25.3782]
[1720791808609,10.0,137.98,137.9,7.2515]
[1720791809023,20.0,137.97,137.9,7.2515]
[1720791809234,20.0,137.97,137.91,7.251]
[1720791809436,20.0,137.97,137.9,18.1289]
[1720791809608,30.0,137.98,137.9,25.3803]
[1720791810113,10.0,137.96,137.89,7.252]
[1720791810438,10.0,137.96,137.88,7.2524]
[1720791810637,43.69,137.94,137.87,26.2430669]
[1720791811133,33.69,137.94,137.88,7.2526]
[1720791811520,33.69,137.94,137.87,26.2430669]
[1720791811710,43.69,137.94,137.87,26.2430669]
[1720791811917,59.1018,137.94,137.87,18.9900669]
[1720791812119,10.0,137.92,137.87,0.8581669]
[1720791812321,33.69,137.91,137.87,0.8581669]
[1720791814217,10.0,137.9,137.87,0.8581669]
[1720791815356,33.69,137.91,137.87,0.8581669]
[1720791815649,10.0,137.9,137.87,0.8581669]
[1720791816453,33.69,137.91,137.82,25.3946]
[1720791816454,59.8232,137.88,137.82,18.139]
[1720791816638,59.8232,137.88,137.79,18.1425]
[1720791816950,59.8232,137.88,137.81,7.2561]
[1720791817119,45.0,137.87,137.8,7.2568]
[1720791817636,39.8281,137.85,137.78,7.2577]
[1720791817834,39.8281,137.85,137.79,7.2573]
[1720791818225,39.8281,137.85,137.78,18.1444]
[1720791818419,39.8281,137.85,137.8,7.2568]
[1720791818824,39.8281,137.85,137.78,25.4022]
[1720791819035,39.8281,137.85,137.78,18.1444]
[1720791819251,39.8281,137.85,137.79,7.2573]
[1720791819421,39.8281,137.85,137.8,7.2568]
[1720791819616,39.8281,137.85,137.79,8.70857893]
[1720791819833,39.8281,137.85,137.78,25.4021]
[1720791820541,39.8281,137.85,137.79,7.2572]
[1720791821354,39.8281,137.85,137.78,25.4022]
[1720791821526,39.8281,137.85,137.79,7.2574]
[1720791822049,39.8281,137.85,137.81,7.2561]
[1720791822257,39.8281,137.85,137.8,18.1416]
[1720791822258,33.69,137.85,137.78,1.45120605]
[1720791822555,33.69,137.85,137.78,8.70890605]
[1720791823052,33.69,137.85,137.78,7.2577]
[1720791823640,33.69,137.85,137.79,7.2573]
[1720791824055,33.69,137.85,137.78,7.2579]
[1720791824857,30.0,137.84,137.78,7.2579]
[1720791825221,40.0,137.84,137.77,25.4039]
[1720791826230,40.0,137.84,137.78,7.2579]
[1720791827733,30.0,137.84,137.79,7.2573]
[1720791828132,40.0,137.84,137.77,25.4038]
[1720791828458,40.0,137.84,137.77,25.4037]
[1720791828770,40.0,137.84,137.78,7.2577]
[1720791829053,40.0,137.84,137.77,25.4038]
[1720791829430,40.0,137.84,137.78,7.2577]
[1720791829644,40.0,137.84,137.77,18.1456]
[1720791830176,40.0,137.84,137.78,7.2578]
[1720791830380,40.0,137.84,137.77,25.4038]
[1720791830873,40.0,137.84,137.78,7.2578]
[1720791831442,10.0,137.84,137.78,7.2578]
[1720791831667,13.00456343,137.84,137.78,7.2578]
[1720791832367,7.54207168,137.87,137.79,36.2857]
[1720791832671,22.2387,137.88,137.82,7.2554]
[1720791832885,10.0,137.87,137.81,18.1402]
[1720791833043,43.69,137.87,137.78,18.1439]
[1720791833358,10.0,137.85,137.79,7.257]
[1720791833965,43.69,137.87,137.81,7.2563]
[1720791834164,65.0,137.86,137.8,25.3986]
[1720791834465,10.0,137.85,137.8,18.1419]
[1720791834675,75.0,137.86,137.8,18.1419]
[1720791835676,75.0,137.86,137.77,19.59677334]
[1720791835850,75.0,137.86,137.79,7.2573]
[1720791836377,75.0,137.86,137.8,7.2567]
[1720791836566,75.0,137.86,137.79,25.4005]
[1720791836780,20.0,137.86,137.8,7.2566]
[1720791836951,20.0,137.86,137.79,18.1434]
[1720791836952,30.0,137.86,137.79,18.1434]
[1720791837157,45.0,137.85,137.79,18.1434]
[1720791837961,45.0,137.85,137.79,25.4007]
[1720791839290,20.0,137.86,137.8,25.3976]
[1720791839581,10.0,137.86,137.8,18.1409]
[1720791839878,10.0,137.86,137.78,7.2577]
[1720791840082,15.8877,137.83,137.77,25.4032]
[1720791840262,20.0,137.82,137.77,25.4032]
[1720791840460,20.0,137.82,137.77,25.4031]
[1720791840859,20.0,137.82,137.77,18.1449]
[1720791841493,20.0,137.82,137.77,25.4032]
[1720791841668,15.8877,137.83,137.78,7.2577]
[1720791841870,15.8877,137.83,137.79,7.2574]
[1720791842094,49.0684,137.87,137.79,18.1429]
[1720791842257,49.0684,137.87,137.82,7.2554]
[1720791842461,49.0684,137.87,137.81,18.1399]
[1720791842660,49.0684,137.87,137.78,18.1441]
[1720791842979,49.0684,137.87,137.8,7.2566]
[1720791843160,10.0,137.86,137.78,25.4018]
[1720791843693,33.69,137.84,137.78,25.4018]
[1720791843884,33.69,137.84,137.78,18.1441]
[1720791844484,43.69,137.84,137.78,18.1441]
[1720791845780,6.4289,137.83,137.75,18.148]
[1720791845979,33.69,137.81,137.75,18.148]
[1720791846483,33.69,137.81,137.75,25.4071]
[1720791847375,33.69,137.77,137.73,0.8581669]
[1720791848305,16.6656,137.76,137.73,0.8581669]
[1720791849503,26.6656,137.76,137.73,0.8581669]
[1720791849802,16.6656,137.76,137.73,0.8581669]
[1720791850012,26.6656,137.76,137.73,0.8581669]
[1720791850377,43.69,137.74,137.73,0.8581669]
[1720791850584,108.69,137.74,137.73,0.8581669]
[1720791850910,63.69,137.74,137.73,0.8581669]
[1720791851475,108.69,137.74,137.73,0.8581669]
[1720791854404,10.0,137.7,137.63,7.2655]
[1720791854592,33.69,137.69,137.63,7.2655]
[1720791854912,33.69,137.69,137.63,7.2658]
[1720791855212,33.69,137.69,137.62,18.165]
[1720791855588,33.69,137.69,137.63,7.2657]
[1720791856000,33.69,137.69,137.64,7.2652]
[1720791856198,33.69,137.69,137.65,7.2647]
[1720791856396,33.69,137.69,137.64,18.1632]
[1720791856603,33.69,137.69,137.63,7.2657]
[1720791857388,33.69,137.69,137.64,7.2652]
[1720791857585,33.69,137.69,137.63,18.1644]
[1720791857789,33.69,137.69,137.61,7.2667]
[1720791858017,10.0,137.68,137.6,25.4351]
[1720791858222,10.0,137.66,137.57,22.2819]
[1720791858387,33.69,137.66,137.6,7.2669]
[1720791858587,43.69,137.66,137.6,7.2669]
[1720791859297,10.0,137.63,137.59,0.8581669]
[1720791859622,43.69,137.63,137.59,0.8581669]
[1720791860500,45.0,137.62,137.59,0.8581669]
[1720791860913,10.0,137.61,137.59,0.8581669]
[1720791861629,33.69,137.6,137.59,0.8581669]
[1720791861830,78.69,137.6,137.59,0.8581669]
[1720791863018,98.69,137.6,137.59,0.8581669]
[1720791863219,128.69,137.6,137.59,0.8581669]
[1720791863606,10.0,137.58,137.52,18.178]
[1720791863817,33.69,137.57,137.52,18.178]
[1720791864526,33.69,137.57,137.49,25.4552]
[1720791864741,105.0,137.56,137.49,25.4552]
[1720791865445,43.69,137.54,137.49,18.1821]
[1720791865609,43.69,137.54,137.48,7.2737]
[1720791866502,43.69,137.54,137.49,7.2732]
[1720791867004,43.69,137.54,137.49,7.273]
[1720791867005,33.69,137.54,137.49,7.273]
[1720791867402,50.0,137.56,137.5,18.1815]
[1720791867629,50.0,137.56,137.51,7.2716]
[1720791867817,50.0,137.56,137.5,18.1815]
[1720791868024,10.0,137.55,137.47,18.1849]
[1720791868326,33.69,137.54,137.47,18.1849]
[1720791868705,33.69,137.54,137.48,7.2734]
[1720791869120,50.0,137.56,137.51,7.2721]
[1720791869716,50.0,137.56,137.52,7.2716]
[1720791869917,30.0,137.56,137.51,18.1798]
[1720791870141,30.0,137.56,137.5,1.45409726]
[1720791870428,30.0,137.56,137.53,25.4479]
[1720791870600,30.0,137.56,137.54,7.2705]
[1720791870801,22.7048,137.59,137.54,7.2705]
[1720791871548,22.7048,137.59,137.53,18.1772]
[1720791871836,12.90356086,137.61,137.55,18.1749]
[1720791871837,10.0,137.61,137.55,18.1749]
[1720791872019,33.69,137.61,137.55,25.4448]
[1720791872224,33.0149,137.62,137.55,18.1749]
[1720791872408,10.0,137.6,137.52,18.1782]
[1720791872610,10.0,137.57,137.5,7.2723]
[1720791872838,20.0,137.56,137.5,7.2726]
[1720791873631,63.69,137.55,137.49,25.4557]
[1720791874132,30.0,137.55,137.54,7.2706]
[1720791874320,33.69,137.6,137.54,7.2706]
[1720791874523,20.0,137.59,137.54,7.2706]
[1720791874740,20.0,137.59,137.53,18.1767]
[1720791875441,20.0,137.59,137.54,7.2705]
[1720791875744,20.0,137.59,137.53,18.1767]
[1720791876535,30.0,137.59,137.51,7.2721]
[1720791876825,20.0,137.59,137.51,7.2721]
[1720791877029,20.0,137.59,137.52,7.2716]
[1720791877835,20.0,137.59,137.53,1.45074361]
[1720791878031,20.0,137.59,137.54,7.2705]
[1720791878211,20.0,137.59,137.55,7.2699]
[1720791878412,23.0149,137.62,137.56,7.2693]
[1720791878913,33.69,137.63,137.57,7.2688]
[1720791880234,33.69,137.63,137.56,18.1732]
[1720791880444,33.69,137.63,137.54,7.2705]
[1720791880641,45.0,137.62,137.53,25.4477]
[1720791880931,45.0,137.62,137.53,18.1767]
[1720791881140,45.0,137.62,137.54,1.45388972]
[1720791881344,20.0,137.61,137.55,18.1751]
[1720791881528,20.0,137.62,137.55,26.89869873]
[1720791881847,20.0,137.62,137.55,25.4448]
[1720791882227,20.0,137.62,137.56,8.7228444]
[1720791882432,20.0,137.62,137.55,25.4451]
[1720791883057,20.0,137.62,137.55,18.1751]
[1720791883222,20.0,137.62,137.52,33.3448]
[1720791883419,30.0,137.62,137.53,52.2709]
[1720791883841,20.0,137.62,137.53,52.2709]
[1720791884028,20.0,137.62,137.54,25.4471]
[1720791885127,30.0,137.62,137.53,52.2709]
[1720791885325,20.0,137.62,137.53,52.2709]
[1720791885642,20.0,137.62,137.55,7.27]
[1720791885840,20.0,137.62,137.55,18.1749]
[1720791886239,20.0,137.62,137.56,7.2695]
[1720791886449,41.23282661,137.63,137.57,7.2689]
[1720791886649,41.23282661,137.63,137.56,7.2691]
[1720791886650,33.69,137.63,137.56,7.2691]
[1720791887449,33.69,137.63,137.55,25.4448]
[1720791887827,33.69,137.63,137.53,45.0]
[1720791888034,33.69,137.63,137.54,7.2701]
[1720791888440,33.69,137.6,137.52,33.3447]
[1720791888636,33.69,137.6,137.52,40.6159]
[1720791888928,33.69,137.6,137.53,7.2711]
[1720791889234,33.69,137.6,137.54,7.2705]
[1720791889443,33.69,137.6,137.54,18.1756]
[1720791890234,33.69,137.6,137.54,25.4458]
[1720791890433,20.0,137.62,137.56,7.2695]
[1720791890939,20.0,137.62,137.56,18.1737]
[1720791891142,20.0,137.62,137.56,25.4428]
[1720791891649,20.0,137.62,137.55,7.2699]
[1720791892039,20.0,137.62,137.56,7.2694]
[1720791892240,20.0,137.62,137.55,25.4445]
[1720791892453,20.0,137.62,137.56,7.2694]
[1720791892631,20.0,137.62,137.57,1.43364507]
[1720791893747,20.0,137.62,137.55,25.4445]
[1720791894253,20.0,137.62,137.55,18.1746]
[1720791894455,20.0,137.62,137.54,7.2704]
[1720791894755,20.0,137.62,137.53,7.2709]
[1720791894938,20.0,137.62,137.54,45.0]
[1720791895336,20.0,137.62,137.54,52.2705]
[1720791895864,20.0,137.62,137.55,7.27]
[1720791896152,20.0,137.62,137.54,18.1764]
[1720791896367,20.0,137.62,137.54,25.4467]
[1720791897540,20.0,137.62,137.55,1.45210437]
[1720791897761,33.69,137.63,137.56,18.1733]
[1720791898063,33.69,137.63,137.57,1.4518938]
[1720791899452,33.69,137.63,137.55,7.2696]
[1720791900032,33.69,137.63,137.56,7.2694]
[1720791900272,33.69,137.63,137.54,36.3518]
[1720791900446,33.69,137.63,137.58,7.2681]
[1720791900760,33.69,137.63,137.58,18.171]
[1720791900979,33.69,137.63,137.55,63.1739]
[1720791901147,33.69,137.63,137.57,7.269]
[1720791901346,33.69,137.63,137.56,7.2694]
[1720791901549,33.69,137.63,137.57,1.43552181]
[1720791901856,33.69,137.63,137.55,70.4438]
[1720791902231,33.69,137.63,137.53,1.13151812]
[1720791902434,20.0,137.62,137.54,7.2702]
[1720791902637,20.0,137.62,137.55,1.13135359]
[1720791902840,29.88794916,137.65,137.61,18.1666]
[1720791903074,36.32271726,137.82,137.54,36.3513]
[1720791903075,22.8297,137.72,137.62,1.15325415]
[1720791903272,22.8297,137.72,137.68,7.2626]
[1720791903273,30.37491106,137.72,137.68,7.2626]
[1720791903445,30.37491106,137.72,137.68,8.41752556]
[1720791903767,56.5197,137.72,137.65,7.2645]
[1720791903971,56.5197,137.72,137.64,25.4274]
[1720791904271,56.5197,137.72,137.65,1.45278872]
[1720791904437,22.8297,137.72,137.66,18.1603]
[1720791904761,22.8297,137.72,137.67,1.45254875]
[1720791905349,22.8297,137.72,137.67,8.71624875]
[1720791905553,22.8297,137.72,137.68,1.45243366]
[1720791905862,22.8297,137.72,137.67,1.45243961]
[1720791906054,22.8297,137.72,137.63,18.1635]
[1720791906247,33.69,137.7,137.64,1.45273985]
[1720791906578,33.69,137.7,137.65,1.4527988]
[1720791906776,33.69,137.7,137.65,8.7174988]
[1720791907061,33.69,137.7,137.65,1.4527988]
[1720791907249,33.69,137.7,137.63,25.4291]
[1720791907559,33.69,137.7,137.64,7.2652]
[1720791907740,33.69,137.7,137.65,1.45283784]
[1720791907943,33.69,137.7,137.64,1.45273058]
[1720791908348,33.69,137.7,137.63,1.4528365]
[1720791908549,33.69,137.7,137.63,46.4528365]
[1720791908750,33.69,137.7,137.64,18.1631]
[1720791908959,33.69,137.7,137.66,7.2641]
[1720791909255,33.69,137.7,137.65,8.7173254]
[1720791909442,33.69,137.7,137.65,7.2647]
[1720791909944,33.69,137.7,137.66,7.2642]
[1720791910354,33.69,137.7,137.64,18.1631]
[1720791910744,22.8297,137.72,137.66,7.2639]
[1720791911169,22.8297,137.72,137.67,1.44917593]
[1720791911383,22.8297,137.72,137.68,1.45127051]
[1720791911745,22.8297,137.72,137.66,18.1599]
[1720791912085,33.69,137.71,137.64,8.71766797]
[1720791912370,33.69,137.71,137.65,1.45273453]
[1720791912556,33.69,137.71,137.63,18.1639]
[1720791912872,33.69,137.71,137.62,7.266]
[1720791913068,45.0,137.7,137.61,7.2667]
[1720791913373,33.69,137.71,137.62,26.8850973]
[1720791913671,20.0,137.7,137.62,25.4318]
[1720791913847,20.0,137.7,137.62,18.1658]
[1720791914044,33.69,137.71,137.64,18.1632]
[1720791914248,22.8297,137.72,137.65,7.2646]
[1720791914457,20.0,137.71,137.65,7.2646]
[1720791914769,20.0,137.71,137.65,7.2647]
[1720791915074,20.0,137.71,137.66,8.42555208]
[1720791915674,22.8297,137.72,137.65,1.45258118]
[1720791915847,22.8297,137.72,137.63,45.0]
[1720791916045,22.8297,137.72,137.63,7.2657]
[1720791916383,22.8297,137.72,137.65,7.2647]
[1720791916544,22.8297,137.72,137.65,1.45267294]
[1720791916744,22.8297,137.72,137.64,7.2651]
[1720791917048,22.8297,137.72,137.65,0.92623018]
[1720791917245,32.8297,137.72,137.63,18.1645]
[1720791917560,33.69,137.69,137.6,25.4346]
[1720791917749,33.69,137.69,137.61,0.61683292]
[1720791917944,33.69,137.69,137.61,8.71975251]
[1720791918147,15.7286,137.68,137.61,1.45295251]
[1720791918867,33.69,137.66,137.59,8.72085902]
[1720791919060,33.69,137.66,137.59,1.45315902]
[1720791919661,33.69,137.66,137.59,8.72095902]
[1720791920279,33.69,137.66,137.6,1.45322749]
[1720791920673,43.69,137.66,137.59,1.45322749]
[1720791920980,43.69,137.66,137.56,7.2694]
[1720791920981,20.0,137.65,137.56,7.2694]
[1720791921180,33.69,137.63,137.58,7.2684]
[1720791922088,33.69,137.66,137.61,7.2665]
[1720791922459,33.69,137.66,137.61,1.43234662]
[1720791923677,33.69,137.66,137.6,1.4324507]
[1720791923882,33.69,137.66,137.58,7.2683]
[1720791924185,43.69,137.66,137.58,1.45329205]
[1720791924687,33.69,137.66,137.58,1.45329205]
[1720791924865,33.69,137.66,137.58,8.72169205]
[1720791925382,33.69,137.66,137.59,7.2677]
[1720791925760,33.69,137.66,137.58,8.72139205]
[1720791925960,43.69,137.66,137.58,8.72139205]
[1720791926182,10.0,137.64,137.55,1.45340396]
[1720791926486,35.2012,137.63,137.59,7.2679]
[1720791926681,35.2012,137.63,137.55,36.35]
[1720791926871,33.69,137.65,137.61,7.2665]
[1720791927071,33.69,137.65,137.6,7.2672]
[1720791927264,33.69,137.65,137.59,25.4374]
[1720791927464,33.69,137.65,137.55,36.35]
[1720791927666,33.69,137.65,137.6,7.2673]
[1720791928086,33.69,137.65,137.58,18.1708]
[1720791928282,33.69,137.65,137.56,45.0]
[1720791928490,33.69,137.65,137.56,7.2694]
[1720791928779,43.69,137.65,137.56,7.2694]
[1720791928986,20.0,137.64,137.57,1.45355764]
[1720791929171,20.0,137.64,137.58,1.45354751]
[1720791930371,20.0,137.64,137.55,25.4445]
[1720791930577,20.0,137.64,137.55,18.1746]
[1720791930893,20.0,137.64,137.55,25.4443]
[1720791931079,76.8896,137.63,137.55,18.1746]
[1720791931284,33.69,137.62,137.56,0.5957333]
[1720791931774,33.69,137.62,137.55,0.59577661]
[1720791932173,33.69,137.62,137.54,7.2704]
[1720791932379,20.0,137.61,137.54,7.2704]
[1720791932883,33.69,137.59,137.55,1.21810939]
[1720791933598,20.0,137.61,137.55,1.21810939]
[1720791933801,20.0,137.61,137.56,7.2694]
[1720791934014,33.69,137.62,137.58,7.2683]
[1720791934295,33.69,137.62,137.57,1.2179323]
[1720791934468,33.69,137.62,137.57,7.2689]
[1720791934674,33.69,137.62,137.58,8.48567819]
[1720791934888,21.8896,137.63,137.59,1.21748969]
[1720791935199,21.8896,137.63,137.58,1.21748969]
[1720791935702,21.8896,137.63,137.58,8.48588969]
[1720791936498,21.8896,137.63,137.56,7.2694]
[1720791936697,21.8896,137.63,137.55,7.2699]
[1720791937307,21.8896,137.63,137.56,18.1736]
[1720791937606,21.8896,137.63,137.58,7.2683]
[1720791937909,21.8896,137.63,137.58,18.171]
[1720791938098,21.8896,137.63,137.59,7.2675]
[1720791938299,21.8896,137.63,137.6,1.45326507]
[1720791938612,21.8896,137.63,137.58,25.4394]
[1720791938978,21.8896,137.63,137.58,18.171]
[1720791939407,21.8896,137.63,137.58,25.4391]
[1720791939977,21.8896,137.63,137.59,7.2678]
[1720791940390,21.8896,137.63,137.59,8.35056354]
[1720791940593,21.8896,137.63,137.58,25.4393]
[1720791940982,21.8896,137.63,137.58,18.171]
[1720791941186,21.8896,137.63,137.59,1.44852309]
[1720791941580,15.7051,137.63,137.61,7.2668]
[1720791941786,6.0091,137.66,137.62,7.2662]
[1720791942109,15.82,137.67,137.63,1.45039403]
[1720791942608,15.82,137.67,137.63,8.71619403]
[1720791943212,15.82,137.67,137.61,7.2667]
[1720791943380,15.82,137.67,137.61,8.71698863]
[1720791943713,15.82,137.67,137.62,45.0]
[1720791943919,16.5405,137.71,137.63,1.45272891]
[1720791944081,16.5405,137.71,137.66,18.1605]
[1720791944279,16.5405,137.71,137.67,8.71560681]
[1720791944791,6.1628,137.73,137.68,19.61013776]
[1720791944988,6.1628,137.73,137.7,7.2617]
[1720791945205,6.1628,137.73,137.69,1.45227338]
[1720791945206,6.1628,137.73,137.69,8.71477338]
[1720791945493,6.1628,137.73,137.69,7.2625]
[1720791945690,16.6013,137.75,137.7,7.2617]
[1720791946000,16.6013,137.75,137.7,25.4168]
[1720791946413,16.6013,137.75,137.71,7.2613]
[1720791946612,16.6013,137.75,137.72,8.71041576]
[1720791946912,40.2948,137.77,137.73,7.2605]
[1720791947083,6.6048,137.77,137.73,7.2605]
[1720791947296,15.5441,137.79,137.74,8.71192899]
[1720791947994,15.5441,137.79,137.74,25.4096]
[1720791948517,15.5441,137.79,137.72,7.261]
[1720791948888,15.5441,137.79,137.73,1.17037542]
[1720791949091,15.5441,137.79,137.72,7.261]
[1720791949407,15.5441,137.79,137.71,18.1532]
[1720791949604,15.5441,137.79,137.72,45.0]
[1720791950140,15.5441,137.79,137.73,7.2602]
[1720791950347,15.5441,137.79,137.72,52.2609]
[1720791950709,15.5441,137.79,137.73,18.1511]
[1720791950938,15.5441,137.79,137.72,45.0]
[1720791951148,15.5441,137.79,137.75,7.2593]
[1720791951418,15.5441,137.79,137.72,45.0]
[1720791951530,15.5441,137.79,137.74,18.1492]
[1720791951840,15.5441,137.79,137.73,7.2604]
[1720791952039,15.5441,137.79,137.75,7.2592]
[1720791952244,15.5441,137.79,137.76,1.45154364]
[1720791952447,15.5441,137.79,137.75,8.52077978]
[1720791953245,15.5441,137.79,137.75,1.26157978]
[1720791953612,15.5441,137.79,137.72,45.0]
[1720791953816,15.5441,137.79,137.73,7.2601]
[1720791954645,15.5441,137.79,137.72,25.4132]
[1720791954939,15.5441,137.79,137.73,7.2602]
[1720791955121,15.5441,137.79,137.74,7.26]
[1720791955530,15.5441,137.79,137.73,7.2604]
[1720791955724,6.3932,137.81,137.75,18.1486]
[1720791955928,6.3932,137.81,137.76,1.45156968]
[1720791956519,6.3932,137.81,137.77,7.2584]
[1720791956914,6.3932,137.81,137.76,8.71036968]
[1720791957758,16.4154,137.82,137.77,19.59746431]
[1720791957928,16.4154,137.82,137.78,8.70888872]
[1720791958252,6.365,137.84,137.79,18.1433]
[1720791958448,6.365,137.84,137.8,8.70787808]
[1720791958658,6.365,137.84,137.8,1.45107808]
[1720791958831,6.365,137.84,137.81,7.2563]
[1720791959032,6.365,137.84,137.8,1.45107808]
[1720791959247,6.365,137.84,137.79,18.1433]
[1720791959456,6.365,137.84,137.78,8.7091239]
[1720791959649,15.0123,137.86,137.72,58.8951]
[1720791959973,15.0123,137.86,137.73,65.0]
[1720791960268,15.0123,137.86,137.79,25.4001]
[1720791960436,15.0123,137.86,137.8,1.45122729]
[1720791960837,15.0123,137.86,137.79,18.1431]
[1720791961539,15.0123,137.86,137.79,8.70867854]
[1720791961737,15.0123,137.86,137.8,1.45119887]
[1720791962057,15.0123,137.86,137.8,26.84959887]
[1720791962356,15.0123,137.86,137.81,8.70724335]
[1720791962535,15.0123,137.86,137.82,7.2557]
[1720791962953,30.0,137.83,137.82,7.2557]
[1720791963151,30.0,137.83,137.81,7.2561]
[1720791963978,15.0123,137.86,137.81,7.2561]
[1720791964331,15.0123,137.86,137.82,7.2558]
[1720791965232,6.4225,137.87,137.83,8.70583637]
[1720791965437,6.4225,137.87,137.84,7.2546]
[1720791965737,30.0,137.85,137.84,7.2546]
[1720791966251,30.0,137.85,137.83,1.45093637]
[1720791966444,30.0,137.85,137.79,18.1427]
[1720791966632,30.0,137.85,137.81,7.2562]
[1720791966830,30.0,137.85,137.82,7.2558]
[1720791967028,15.1951,137.89,137.81,25.3969]
[1720791967261,20.0,137.88,137.81,25.3969]
[1720791967448,20.0,137.88,137.81,18.1408]
[1720791967837,20.0,137.88,137.81,26.84798238]
[1720791968040,20.0,137.88,137.82,7.2554]
[1720791968234,51.4615,137.84,137.77,18.1451]
[1720791968433,51.4615,137.84,137.78,1.45142083]
[1720791968633,51.4615,137.84,137.76,8.71011188]
[1720791968863,51.4615,137.84,137.77,7.2584]
[1720791969155,51.4615,137.84,137.77,8.70983209]
[1720791969359,51.4615,137.84,137.77,7.2584]
[1720791969565,51.4615,137.84,137.77,8.70649878]
[1720791969875,51.4615,137.84,137.78,18.1447]
[1720791970172,51.4615,137.84,137.76,7.2585]